Cogmind - Beta 15 @@@ ROGUE MODE // 2025.05.13 @ 17:46:24 Player: Wooliertree Result: Destroyed by H-61 Shepherd with Heavy Assault Cannon Performance ------------- Evolutions (2) 1000 Regions Visited (4) 800 Robots Destroyed (32) 160 Value Destroyed (908) 908 Prototype IDs (0) 0 Alien Tech Used (0) 0 Bonus (0) 0 TOTAL SCORE: 2868 Bonus ------- None Cogmind --------- Core Integrity 0/550 Matter 234/300 Energy 99/100 System Corruption 0% Temperature Cool (9) Movement Core (100) Ox1 Location -8/Materials Parts ------- > --- POWER (2) -------- (None) > --- PROPULSION (2) --- (None) > --- UTILITY (5) ------ Small Storage Unit Advanced Visual Processing Unit > --- WEAPON (2) ------- (None) > --- INVENTORY (8) ---- Aluminum Leg Aluminum Leg Sensor Array Thief Drone Bay Peak State ------------ > --- POWER ------------ Ion Engine Light Nuclear Core > --- PROPULSION ------- Aluminum Leg Carbon-fiber Leg > --- UTILITY ---------- Small Storage Unit Advanced Visual Processing Unit Sensor Array Improved Terrain Scanner System Shield > --- WEAPON ----------- Heavy Assault Rifle Gauss Rifle > --- INVENTORY -------- Improved Ion Engine Aluminum Leg Aluminum Leg Targeting Computer Medium Armor Plating Thief Drone Bay Assault Rifle [Rating: 26] Favorites ----------- Power Ion Engine Engine Ion Engine Power Core Light Nuclear Core Propulsion Light Treads Treads Light Treads Leg Aluminum Leg Utility Small Storage Unit Device ECM Suite Storage Small Storage Unit Processor Targeting Computer Hackware System Shield Protection Medium Armor Plating Weapon Light Assault Rifle Energy Gun Particle Gun Ballistic Gun Light Assault Rifle Launcher Grenade Launcher Build | -11 -10 -9 -9 -8 ------- Run | Yrd Mat Mat Min Mat Slots Evolved 4 | . . 2 . 2 Power 1 | . . . . 1 Propulsion . | . . . . . Utility 3 | . . 2 . 1 Weapon . | . . . . . Parts Attached 30 | 7 . 6 4 13 Power 5 | 1 . 1 1 2 Engine 4 | 1 . 1 1 1 Core 1 | . . . . 1 Reactor . | . . . . . Propulsion 6 | 2 . 2 1 1 Treads 2 | 2 . . . . Leg 4 | . . 2 1 1 Wheel . | . . . . . Hover . | . . . . . Flight . | . . . . . Utility 11 | 2 . 2 1 6 Device 5 | 1 . 1 1 2 Storage 1 | 1 . . . . Processor 3 | . . 1 . 2 Hackware 1 | . . . . 1 Protection 1 | . . . . 1 Artifact . | . . . . . Weapon 8 | 2 . 1 1 4 Energy Gun 1 | . . . . 1 Energy Cannon . | . . . . . Ballistic Gun 6 | 2 . 1 . 3 Ballistic Cannon . | . . . . . Launcher 1 | . . . 1 . Special Weapon . | . . . . . Impact Weapon . | . . . . . Slashing Weapon . | . . . . . Piercing Weapon . | . . . . . Special Melee Weapon . | . . . . . Unidentified Prototypes . | . . . . . Parts Lost 19 | . . 5 1 13 Power 5 | . . 1 1 3 Propulsion 3 | . . 1 . 2 Utility 5 | . . 1 . 4 Weapon 6 | . . 2 . 4 Highest Loss Streak 12 | . . 2 2 12 To Critical Strikes . | . . . . . Average Backups 4 | . 3 4 2 6 Power . | . 1 . . . Propulsion . | . . . 1 1 Utility 1 | . 1 1 1 2 Weapon . | . . 1 . . Tool/Special . | . . . . . Unused Backups 2 | . . . . 2 Power 1 | . . . . 1 Propulsion . | . . . . . Utility 1 | . . . . 1 Weapon . | . . . . . Tool/Special . | . . . . . Average Slot Usage (%) 91 | . 100 82 97 89 Engine 10 | . 14 9 10 7 Core 1 | . . . . 7 Treads 13 | . 28 13 . . Leg 8 | . . 3 22 16 Device 14 | . 14 13 20 14 Storage 11 | . 14 11 11 9 Processor 7 | . . 10 11 10 Hackware 1 | . . . . 6 Ballistic Gun 20 | . 28 19 11 14 Launcher 1 | . . . 10 1 Peak Build Rating 26 | 7 7 9 12 26 Average Rating 10 | 5 7 7 10 20 On Entrance 6 | . 7 7 6 12 Naked Turns . | . . . . . Heaviest Build 25 | 14 14 16 17 25 Greatest Support 40 | 40 40 40 20 25 Greatest Overweight (x) 5 | 4 . 1 . 5 Average Overweight (x) . | . . . . . Largest Inventory Capacity 8 | 8 8 8 8 8 Average Capacity 7 | 7 8 8 8 8 Most Carried 8 | 1 6 5 4 8 Average Carried 4 | . 3 4 2 6 Final Capacity 8 | 8 8 8 8 8 Final Carried 6 | 1 6 5 4 4 Class Distribution -------------------- 67% | Mutant 25% | Scavenger-Mutant 6% | Scavenger-Skirmisher Dominant Class ---------------- Mutant | -10/Materials Mutant | -9/Materials Scavenger-Mutant | -9/Mines Scavenger-Mutant | -8/Materials Resources | -11 -10 -9 -9 -8 ----------- Run | Yrd Mat Mat Min Mat Matter Collected 770 | 157 69 341 51 152 Remotely . | . . . . . Salvage Created 1177 | 103 213 529 5 327 Parts 68 | 7 18 23 1 19 Haulers Intercepted 2 | . . 2 . . Recyclers Shooed 3 | . 1 2 . . Parts Field Recycled . | . . . . . Retrieved Matter . | . . . . . Parts Self-Destructed . | . . . . . Prevented . | . . . . . Kills | -11 -10 -9 -9 -8 ------- Run | Yrd Mat Mat Min Mat Combat Hostiles Destroyed 23 | . 7 10 . 6 Guns 22 | . 7 10 . 5 AOE 1 | . . . . 1 Classes Destroyed 11 | 2 3 1 . 5 Tunneler 3 | 2 . . 1 . Hauler 2 | . . 2 . . Recycler 1 | 1 . . . . Operator 1 | . . . . 1 Watcher 2 | . 2 . . . Swarmer 4 | . 4 . . . Grunt 14 | . 3 10 . 1 Duelist 1 | . . . . 1 Sentry 2 | . . . . 2 Specialist 1 | . . . . 1 Hunter 1 | . . . . 1 Best Kill Streak 3 | 3 2 2 2 2 Combat Bots Only 2 | . 2 2 . 2 Max Kills in Single Turn 1 | 1 1 1 1 1 Gunslinging . | . . . . . Exploded 1 | . . . . 1 Melee . | . . . . . Uniques/NPCs Destroyed . | . . . . . Combat | -11 -10 -9 -9 -8 -------- Run | Yrd Mat Mat Min Mat Hostile Shots Fired 216 | . 49 63 . 104 Missed 52 | . 15 10 . 27 Hits 164 | . 34 53 . 77 Melee 4 | . . . . 4 Projectile 160 | . 34 53 . 73 Critical Strikes 5 | . . . . 5 Damage Taken 2480 | . 308 613 38 1521 Core 763 | . 52 122 . 589 Absorbed by Shields . | . . . . . Core Remaining (%) 82 | 100 79 . 69 . Volleys Fired 134 | 8 39 55 1 31 Largest 2 | 2 2 2 2 2 Hottest 65 | 40 40 40 50 65 Shots Fired 231 | 16 78 84 2 51 Gun 228 | 16 78 84 1 49 Cannon . | . . . . . Launcher 3 | . . . 1 2 Special . | . . . . . Kinetic 227 | 16 78 84 1 48 Thermal 1 | . . . . 1 Explosive 3 | . . . 1 2 Electromagnetic . | . . . . . Robot Hit Streak 17 | 2 17 12 6 10 Robot Miss Streak 6 | 2 4 6 . 2 Penetration Max . | . . . . . Secondary Targets 2 | . . . . 2 Max Gunslinging Chain 1 | . . . . 1 Shots Hit Robots 146 | 10 42 54 2 38 Core Hits 71 | 5 16 30 2 18 Critical Kills 2 | . 1 1 . . Critical Parts Destroyed . | . . . . . Critical Strikes 2 | . 1 1 . . Destroy 2 | . 1 1 . . Melee Attacks . | . . . . . Impact . | . . . . . Slashing . | . . . . . Piercing . | . . . . . Sneak Attacks . | . . . . . Combat Hostiles . | . . . . . Follow-up Attacks . | . . . . . Damage Inflicted 1769 | 113 460 488 79 629 Guns 1595 | 113 441 485 7 549 Cannons . | . . . . . Explosions 130 | . . . 60 70 Melee . | . . . . . Ramming 44 | . 19 3 12 10 Kinetic 1582 | 113 441 485 7 536 Thermal 13 | . . . . 13 Explosive 130 | . . . 60 70 Electromagnetic . | . . . . . Impact . | . . . . . Slashing . | . . . . . Piercing . | . . . . . Highest Corruption . | . . . . . Average Corruption . | . . . . . Corruption Purged . | . . . . . Corruption Blocked . | . . . . . Overload Shots . | . . . . . Overflow Damage 22 | . . . 18 4 Projectiles . | . . . . . Explosions 22 | . . . 18 4 Melee . | . . . . . Knockbacks . | . . . . . Impact . | . . . . . Kinetic . | . . . . . Secondary . | . . . . . Self-Inflicted Damage 72 | . . . 39 33 Shots 2 | . . . 1 1 Rammed 10 | . 5 . . 5 Targets Rammed 17 | . 5 3 3 6 Kicked 7 | . . 3 3 1 Crushed . | . . . . . Highest Temperature 28 | . 12 12 . 28 Average Temperature 7 | . 6 4 . 10 Received Heat Transfer 918 | . 78 309 . 531 Siege Activations . | . . . . . Martial Activations . | . . . . . Shielding Activations . | . . . . . Robots Disrupted . | . . . . . Combat Hostiles . | . . . . . Robots Corrupted . | . . . . . Combat Hostiles . | . . . . . Parts Fried . | . . . . . Impact Corruptions . | . . . . . Robots Melted . | . . . . . Combat Hostiles . | . . . . . Parts Melted . | . . . . . Heat Transferred 37 | . . . . 37 Parts Sabotaged . | . . . . . Parts Stolen . | . . . . . Parts Stripped . | . . . . . Power Chain Reactions . | . . . . . Alert | -11 -10 -9 -9 -8 ------- Run | Yrd Mat Mat Min Mat Maximum Alert Level . | . . . . . Low Security (%) 100 | 100 100 100 100 100 Level 1 . | . . . . . Level 2 . | . . . . . Level 3 . | . . . . . Level 4 . | . . . . . Level 5 . | . . . . . High Security . | . . . . . Max Security . | . . . . . Peak Influence 95 | 5 95 74 29 56 Initial 24 | . . 17 24 . Average 21 | . 25 29 6 18 Influence Increases 769 | 15 264 264 15 211 Destroy 0b10 Robot/C 460 | . 140 200 . 120 Destroy 0b10 Robot/NC 45 | 15 10 10 5 5 Destroy Leader 108 | . 34 24 . 50 Successful Hack 5 | . 5 . . . Disable Machine 30 | . . . . 30 Destroy Structure 16 | . . . 10 6 Lose Combat Pursuer 105 | . 75 30 . . Influence Decreases 769 | 15 222 242 79 211 Entered New Map 65 | . . 25 40 . Time Decay 467 | 15 137 160 29 126 Lost Part 135 | . . 40 10 85 Purge Threat 102 | . 85 17 . . Squads Dispatched 7 | . 2 1 . 4 Investigation 1 | . 1 . . . Extermination . | . . . . . Reinforcement 6 | . 1 1 . 4 Assault . | . . . . . Garrison . | . . . . . Intercept . | . . . . . Searches Triggered . | . . . . . Construction Impeded 1 | . . . . 1 Haulers Reinforced . | . . . . . Active Scanning Responses . | . . . . . Cargo Convoy Interrupts . | . . . . . Stealth | -11 -10 -9 -9 -8 --------- Run | Yrd Mat Mat Min Mat Distress Signals 9 | . 1 7 . 1 Communications Jammed . | . . . . . Distress Signals . | . . . . . Times Spotted 60 | . 19 26 . 15 Peak Tracking Total 6 | . 4 5 . 6 Tactical Retreats 8 | . 2 6 . . Traps | -11 -10 -9 -9 -8 ------- Run | Yrd Mat Mat Min Mat Traps Triggered 1 | . 1 . . . Indirectly . | . . . . . Trap Hack Attempts . | . . . . . Triggered . | . . . . . Disarmed . | . . . . . Reprogrammed . | . . . . . Reused . | . . . . . Traps Extracted . | . . . . . Installed . | . . . . . Triggered . | . . . . . Machines | -11 -10 -9 -9 -8 ---------- Run | Yrd Mat Mat Min Mat Machines Disabled 2 | . . . . 2 Max in Single Turn 1 | . . . . 1 Garrison Access 1 | . . . . 1 Machines Repaired . | . . . . . Machines Dismantled . | . . . . . Machines Sabotaged . | . . . . . Overloaded Fab Kills . | . . . . . Hacking | -11 -10 -9 -9 -8 --------- Run | Yrd Mat Mat Min Mat Machines Accessed 8 | . 4 1 1 2 Terminals 6 | . 4 1 . 1 Fabricators . | . . . . . Repair Stations . | . . . . . Recycling Units . | . . . . . Scanalyzers . | . . . . . Garrison Access 1 | . . . . 1 Total Hacks 15 | . 8 2 1 4 Successful 6 | . 3 1 1 1 Failed 9 | . 5 1 . 3 Catastrophic 3 | . 2 . . 1 Database Lockouts . | . . . . . Manual 11 | . 7 2 . 2 Terminals 12 | . 8 2 . 2 Fabricators . | . . . . . Repair Stations . | . . . . . Recycling Units . | . . . . . Scanalyzers . | . . . . . Garrison Access 2 | . . . . 2 Terminal Hacks 5 | . 3 1 1 . Robot Analysis 1 | . 1 . . . Open Door 1 | . . . 1 . Unreport Threat 3 | . 2 1 . . Fabricator Hacks . | . . . . . Repair Station Hacks . | . . . . . Recycling Unit Hacks . | . . . . . Scanalyzer . | . . . . . Garrison Access Hacks 1 | . . . . 1 Seal Access 1 | . . . . 1 Unauthorized Hacks . | . . . . . Terminals . | . . . . . Fabricators . | . . . . . Repair Stations . | . . . . . Recycling Units . | . . . . . Scanalyzers . | . . . . . Garrison Access . | . . . . . Data Cores Recovered . | . . . . . Used . | . . . . . Hacking Detections 7 | . 4 1 . 2 Full Trace Events . | . . . . . Feedback Events . | . . . . . Feedback Blocked . | . . . . . Robot Schematics Acquired . | . . . . . Robots Built . | . . . . . Authchips . | . . . . . Time . | . . . . . Total Robot Build Rating . | . . . . . Part Schematics Acquired . | . . . . . Parts Built . | . . . . . Authchips . | . . . . . Time . | . . . . . Total Part Build Rating . | . . . . . Parts Repaired . | . . . . . Time . | . . . . . Parts Recycled . | . . . . . Recycled Matter . | . . . . . Retrieved Matter . | . . . . . Retrieved Components . | . . . . . Parts Scanalyzed . | . . . . . Part Schematics Acquired . | . . . . . Parts Damaged . | . . . . . Bothacking | -11 -10 -9 -9 -8 ------------ Run | Yrd Mat Mat Min Mat Used RIF Installer . | . . . . . Robots Hacked . | . . . . . Non-combat . | . . . . . Combat . | . . . . . Robot Hacks Applied . | . . . . . Relay Couplers Released . | . . . . . Fabnet Peak Effective % . | . . . . . Robots Rewired . | . . . . . Allies Hacked . | . . . . . Hacks Repelled . | . . . . . Allies | -11 -10 -9 -9 -8 -------- Run | Yrd Mat Mat Min Mat Total Allies . | . . . . . Largest Group . | . . . . . Highest-Rated Group . | . . . . . Highest-Rated Ally . | . . . . . Total Orders . | . . . . . Ally Attacks . | . . . . . Total Damage . | . . . . . Kills . | . . . . . Allies Corrupted . | . . . . . Allies Melted . | . . . . . Intel | -11 -10 -9 -9 -8 ------- Run | Yrd Mat Mat Min Mat Active Infowar (turns) 1287 | 3 477 272 167 368 Optics 150 | . . . . 150 Sensors 100 | . . . . 100 Terrain 427 | . . . 155 272 Seismic 555 | 3 477 75 . . ECM 418 | . . 272 25 121 Robot Analysis Total 1 | . 1 . . . Derelict Logs Recovered 1 | . . . 1 . Drone Launches . | . . . . . Drone Recoveries . | . . . . . Exploration | -11 -10 -9 -9 -8 ------------- Run | Yrd Mat Mat Min Mat Turns Passed 1487 | 80 477 395 167 368 Spaces Moved 697 | 30 218 124 128 197 Core 15 | 10 . . . 5 Treads 328 | 20 218 90 . . Legs 354 | . . 34 128 192 Wheels . | . . . . . Hover . | . . . . . Flight . | . . . . . Fastest Speed 50 | 50 160 120 120 100 Average Speed 143 | 156 160 165 120 122 Slowest Speed 300 | 250 160 190 120 300 Overloaded Moves . | . . . . . Propulsion Burnouts . | . . . . . Robots Hopped . | . . . . . Potential Cave-ins . | . . . . . Cave-ins Triggered . | . . . . . Exploration Rate (%) 19 | 4 39 11 20 22 Regions Visited 4 Branch Regions 1 Pre-discovered Areas 1 | . . . 1 . Known Exits Taken . | . . . . . Unknown Exits Taken 4 | 1 1 1 1 . Scrap Searched 2 | . . . 2 . Spaces Dug . | . . . . . Terrain Destroyed 14 | . . . 10 4 Melee . | . . . . . Projectile . | . . . . . AOE 14 | . . . 10 4 Terrain Rammed . | . . . . . Walls Destroyed . | . . . . . Machines Disabled . | . . . . . Actions | -11 -10 -9 -9 -8 --------- Run | Yrd Mat Mat Min Mat Total 962 | 45 273 242 138 264 Wait 66 | . 7 51 1 7 Move 693 | 29 217 123 127 197 Hop . | . . . . . Pick Up 13 | 1 5 2 2 3 Fast Attach 15 | 7 . 1 1 6 Attach 12 | . . 4 3 5 Detach 3 | . . 1 . 2 Swap 4 | . . 1 . 3 Drop 5 | . . 1 . 4 Fire 134 | 8 39 55 1 31 Melee . | . . . . . Ram 5 | . . . . 5 Kick 7 | . . 3 3 1 Crush 5 | . 5 . . . Escape Stasis . | . . . . . Rewire . | . . . . . Trap . | . . . . . Miscellaneous . | . . . . . Route ------- -11/Scrapyard -10/Materials (discovered 2 exits: *Mat / [*Min]) -9/Materials -9/Mines -8/Materials (discovered 1 exit: [*Fac]) History --------- Turn | Location | Event 21 | -11/Scrapyard | Discovered new exit (range 15) 81 | -11/Scrapyard | Entered Materials 269 | -10/Materials | Discovered new exit (range 8) 308 | -10/Materials | Build established: Mutant 545 | -10/Materials | Discovered new exit (range 9) 558 | -10/Materials | Entered another Materials area 558 | -9/Materials | Evolved 2 slots: Utility x2 604 | -9/Materials | Discovered new exit (range 13) 953 | -9/Materials | Entered Mines 957 | -9/Mines | Met a Derelict bent on vengeance 974 | -9/Mines | Learned location of Zion (-7) 1076 | -9/Mines | Discovered new exit (range 3) 1086 | -9/Mines | Found the Drone Emporium 1094 | -9/Mines | Found Prototype Device 1120 | -9/Mines | Entered Materials 1120 | -8/Materials | Evolved 2 slots: Power x1, Utility x1 1263 | -8/Materials | Build established: Scavenger-Mutant 1473 | -8/Materials | Discovered new exit (range 8) 1478 | -8/Materials | Core integrity fell below 50% 1487 | -8/Materials | Core integrity fell below 20% 1488 | -8/Materials | Destroyed by H-61 Shepherd with Heavy Assault Cannon Last Messages --------------- Slammed into G-47 Trooper. Penetrated by Slug. Particle Gun destroyed. Knocked back. Acquired 42 matter. U-05 Engineer builds a Wall. Slammed into X-62 Marksman. ALERT: Hostiles spotted, dispatching reinforcements to Terminal M004. Penetrated by Slug. K-01 Serf collects debris. Slammed into X-62 Marksman. Slug penetrates G-47 Trooper. System Shield destroyed. G-47 Trooper suffers critical hit (Blast). G-47 Trooper destroyed. Penetrated by Slug. Imp. Deuterium Engine destroyed. Slammed into G-47 Trooper. Critical hit (Burn: +37). Map ----- +----------------------------------------------------+ | [ #?????## # # ! #?????? | | [[ #?#????#####+#### # #?????? | | ![ [ #?????????# # #??#?#? | | ! [[ # ?????T??# + ] ] ##????? | | #???"?????+ """ # #?????? | | #??"? ????# "T ####+####????? | | """ #?????????# """ ### ## ? ???? | | """ #???????? # # #??? | | """ #????? ???# [ #??? | | #?? ??????# /[[*### ## #??? | | ######????#????#######+#####+#?##????? | | ???????????????# !% #???????? | | ??????????#????# """ """ """ ##??????? | | ???????????????# "" """ """ #??????? | | #######?#??????# """ """ """ ##??????? | | #???????# #???????? | | ###### #??????## * ##?????#? | | ???????# ############"#+######???????? | | ???????# ! #% #? ??#??????? | | ###????# #! +?? ??#?????? | | #????# !!! """ g% #??? ???????? | | #????? !! """ " *# #????#?#????? | | #????? !! """ " #%! #???????????? | | #?????? # %g#???????????? | | ###?????##########+### g #####???????? | | ?????? uH@ #???????? | | ?????? < #???????? | | ?????? % #???????? | | ??????################ #####???????? | | ?????????????????????# #???????????? | | ?????????????????????# #???????????? | | ?????????????????????+ +???????????? | | ?????????????????????# #???????????? | | ?????????????????????# #???????????? | | ?????????????????????# #???????????? | | ?????????????????????# #???????????? | | ?????????????????????# #???????????? | | ?????????????????????# #???????????? | | ?????????????????????+ #???????????? | | ?????????????????????# ????????????? | | ?????????????????????# ????????????? | | ?????????????????????# ????????????? | | ?????????????????????# ????????????? | | ?????????????????????# ????????????? | | ?????????????????????????????????????? | | ?????????????????????????????????????? | | ?????????????????????????????????????? | | ?????????????????????????????????????? | | ?????????????????????????????????????? | | ?????????????????????????????????????? | +----------------------------------------------------+ Best States ------------- Heat Dissipation 31 Energy Generation 19 Energy Capacity 310 Matter Stores 300 Matter Capacity 300 Sight Range 20 Robot Scan Range 14 Terrain Scan Range 16 Terrain Scan Density 10 ECM Strength 1 Armor Coverage 225 Evasion (%) 55 Targeting Accuracy 5 Recoil Reduction 2 Defensive Hacking 10 Item Schematics ----------------- None Robot Schematics ------------------ None Fabricated ------------ Nothing Repaired ---------- Nothing Alien Tech Used ----------------- None Achievements -------------- None Challenges ------------ None Game ------ Seed SignalQuantumSpecial Manual? 0 Play Time 00:20:48 Cumulative 15.9 hours Start 2025.05.13 @ 17:26:25 End 2025.05.13 @ 17:46:24 Sessions 1 Manual Loads 0 Difficulty Rogue Special Mode None Game No. 26 Rogue 26 Adventurer 0 Explorer 0 Win Type - Total 0 Types 0/0/0/0/0/0/0/0/0/0 Lore% 4 Gallery% 16 Achievement% 16 Wizard Run 0 Options --------- Layout 1 ASCII 0 Keyboard 0 Movement Vi Keybinds 0 Fullscreen 1 Font 32/SmallcapsGlow Map View 50x35 Zoom Use 0% Tactical HUD 0 Map Filters NONE Filters NONE Steam 1 RUN: acee7b76-5907-47fd-bc21-ffe0d77dcb8f